fUST/lending_fUST_20250930
["ID","MTS","AMOUNT","RATE_DAILY","PERIOD"]
[388576469,1759245049267,-500.0,0.00019725,2]
[388576470,1759245049276,-488.38,0.00019725,2]
[388576471,1759245049286,-500.0,0.00019725,2]
[388576472,1759245049296,-500.0,0.00019725,2]
[388576473,1759245049305,-747.27,0.00019725,2]
[388576474,1759245049314,-754.71,0.00019725,2]
[388576475,1759245049324,-583.39225013,0.00019725,2]
[388576476,1759245049333,-500.0,0.00019725,2]
[388576477,1759245049342,-199.75071882,0.00019725,2]
[388576478,1759245049351,-670.53,0.00019725,2]
[388576479,1759245049360,-1983.65,0.00019725,2]
[388576480,1759245049370,-803.43,0.00019725,2]
[388576481,1759245049379,-688.46,0.00019725,2]
[388576482,1759245049388,-538.24,0.00019725,2]
[388576483,1759245049397,-679.98,0.00019725,2]
[388576484,1759245049407,-500.0,0.00019725,2]
[388576485,1759245049416,-589.27,0.00019725,2]
[388576486,1759245049426,-500.0,0.00019725,2]
[388576487,1759245049435,-535.7,0.00019725,2]
[388576488,1759245049444,-1820.42,0.00019725,2]
[388576489,1759245049453,-2007.42,0.00019725,2]
[388576490,1759245049462,-793.47,0.00019725,2]
[388576491,1759245049473,-2768.25,0.00019725,2]
[388576492,1759245049482,-1506.48,0.00019725,2]
[388576493,1759245049491,-500.0,0.00019725,2]
[388576494,1759245049501,-1157.75,0.00019725,2]
[388576495,1759245049510,-500.0,0.00019725,2]
[388576496,1759245049520,-629.43,0.00019725,2]
[388576497,1759245049529,-500.0,0.00019725,2]
[388576498,1759245049539,-1285.01,0.00019725,2]
[388576499,1759245049550,-501.17,0.00019725,2]
[388576500,1759245049559,-500.0,0.00019725,2]
[388576501,1759245049568,-500.0,0.00019725,2]
[388576502,1759245049578,-500.0,0.00019725,2]
[388576503,1759245049587,-500.0,0.00019725,2]
[388576504,1759245049597,-500.0,0.00019725,2]
[388576505,1759245049608,-500.0,0.00019725,2]
[388576506,1759245049617,-733.74,0.00019725,2]
[388576507,1759245049627,-500.0,0.00019725,2]
[388576508,1759245049637,-1788.96,0.00019725,2]
[388576509,1759245049646,-462.91931824,0.00019725,2]
[388576510,1759245049655,-1345.69,0.00019725,2]
[388576511,1759245049666,-1291.55,0.00019725,2]
[388576512,1759245049679,-500.0,0.00019725,2]
[388576513,1759245049690,-500.0,0.00019725,2]
[388576514,1759245049700,-1166.68,0.00019725,2]
[388576515,1759245049710,-775.21,0.00019725,2]
[388576516,1759245049719,-500.0,0.00019725,2]
[388576517,1759245049728,-1602.97,0.00019725,2]
[388576518,1759245049737,-832.21,0.00019725,2]
[388576519,1759245049747,-829.71,0.00019725,2]
[388576520,1759245049757,-471.75464859,0.00019725,2]
[388576521,1759245049766,-805.26,0.00019725,2]
[388576522,1759245049775,-500.0,0.00019725,2]
[388576523,1759245049784,-500.0,0.00019725,2]
[388576524,1759245049794,-500.0,0.00019725,2]
[388576525,1759245049809,-500.0,0.00019725,2]
[388576526,1759245049819,-500.0,0.00019726,2]
[388576527,1759245049828,-500.0,0.00019726,2]
[388576528,1759245049837,-500.0,0.00019726,2]
[388576529,1759245049847,-500.0,0.00019726,2]
[388576530,1759245049856,-529.15,0.00019726,2]
[388576531,1759245049866,-615.54,0.00019726,2]
[388576532,1759245049875,-500.0,0.00019726,2]
[388576533,1759245049884,-500.0,0.00019726,2]
[388576534,1759245049894,-500.0,0.00019726,2]
[388576535,1759245049903,-500.0,0.00019726,2]
[388576536,1759245049914,-856.35,0.00019726,2]
[388576537,1759245049923,-500.0,0.00019998,2]
[388576538,1759245049933,-806.91,0.00019998,2]
[388576539,1759245049943,-2165.41,0.00019998,2]
[388576540,1759245049958,-1302.12,0.00019998,2]
[388576541,1759245049968,-506.04,0.00019998,2]
[388576542,1759245049977,-524.03,0.00019998,2]
[388576543,1759245049986,-512.5,0.00019998,2]
[388576544,1759245049996,-500.0,0.00019998,2]
[388576545,1759245050006,-676.76,0.00019998,2]
[388576546,1759245050015,-500.0,0.00019998,2]
[388576547,1759245050025,-638.75,0.00019998,2]
[388576548,1759245050034,-1451.45,0.00019998,2]
[388576549,1759245050044,-500.0,0.00019998,2]
[388576550,1759245050054,-500.0,0.00019998,2]
[388576551,1759245050063,-500.0,0.00019998,2]
[388576552,1759245050073,-1040.15,0.00019998,2]
[388576553,1759245050082,-500.0,0.00019998,2]
[388576554,1759245050091,-847.46,0.00019998,2]
[388576555,1759245050100,-840.66,0.00019998,2]
[388576556,1759245050109,-1156.03,0.00019998,2]
[388576557,1759245050119,-968.54,0.00019998,2]
[388576558,1759245050128,-1518.72,0.00019998,2]
[388576559,1759245050136,-500.0,0.00019998,2]
[388576560,1759245050146,-1453.1,0.00019998,2]
[388576561,1759245050155,-544.93,0.00019998,2]
[388576562,1759245050164,-518.44,0.00019998,2]
[388576563,1759245050174,-1051.04,0.00019998,2]
[388576564,1759245050183,-500.0,0.00019998,2]
[388576565,1759245050286,-2303.03,0.00019998,2]
[388576566,1759245050296,-500.0,0.00019999,2]
[388576567,1759245050304,-440.0,0.00019999,2]
[388576568,1759245050313,-1580.86,0.00019999,2]
[388576569,1759245050322,-500.0,0.00019999,2]
[388576570,1759245050331,-500.0,0.00019999,2]
[388576571,1759245050340,-500.0,0.00019999,2]
[388576572,1759245050349,-1807.02,0.00019999,2]
[388576573,1759245050358,-654.09,0.00019999,2]
[388576574,1759245050367,-2511.69,0.00019999,2]
[388576575,1759245050376,-500.0,0.00019999,2]
[388576576,1759245050385,-250.69771359,0.00019999,2]
[388576577,1759245050394,-500.0,0.00019999,2]
[388576578,1759245050403,-567.53,0.00019999,2]
[388576579,1759245050412,-1342.87,0.00019999,2]
[388576580,1759245050421,-2022.65,0.00019999,2]
[388576581,1759245050430,-1527.54,0.00019999,2]
[388576582,1759245050438,-500.0,0.00019999,2]
[388576583,1759245050447,-500.0,0.00019999,2]
[388576584,1759245050456,-500.0,0.00019999,2]
[388576585,1759245050465,-500.0,0.00019999,2]
[388576586,1759245050474,-500.0,0.00019999,2]
[388576587,1759245050482,-2819.35,0.00019999,2]
[388576588,1759245050491,-500.0,0.00019999,2]
[388576589,1759245050500,-500.0,0.00019999,2]
[388576590,1759245050509,-500.0,0.00019999,2]
[388576591,1759245050518,-824.81,0.00019999,2]
[388576592,1759245050527,-500.0,0.00019999,2]
[388576593,1759245050535,-500.0,0.00019999,2]
[388576594,1759245050544,-500.0,0.00019999,2]
[388576595,1759245050553,-500.0,0.00019999,2]
[388576596,1759245050562,-747.27,0.00019999,2]
[388576597,1759245050572,-500.0,0.00019999,2]
[388576598,1759245050581,-754.71,0.00019999,2]
[388576599,1759245050591,-500.0,0.00019999,2]
[388576600,1759245050600,-670.53,0.00019999,2]
[388576601,1759245050609,-1983.65,0.00019999,2]
[388576602,1759245050619,-803.43,0.00019999,2]
[388576603,1759245050628,-688.46,0.00019999,2]
[388576604,1759245050638,-538.24,0.00019999,2]
[388576605,1759245050647,-679.98,0.00019999,2]
[388576606,1759245050656,-500.0,0.00019999,2]
[388576607,1759245050672,-500.0,0.00019999,2]
[388576608,1759245050681,-589.27,0.00019999,2]
[388576609,1759245050690,-500.0,0.00019999,2]
[388576610,1759245050702,-500.0,0.00019999,2]
[388576611,1759245050714,-535.7,0.00019999,2]
[388576613,1759245050723,-1820.42,0.00019999,2]
[388576614,1759245050732,-2007.42,0.00019999,2]
[388576616,1759245050743,-793.47,0.00019999,2]
[388576618,1759245050752,-2768.25,0.00019999,2]
[388576619,1759245050761,-1506.48,0.00019999,2]
[388576621,1759245050770,-500.0,0.00019999,2]
[388576623,1759245050781,-207.03717706,0.00019999,2]
[388576625,1759245050790,-1157.75,0.00019999,2]
[388576626,1759245050799,-629.43,0.00019999,2]
[388576627,1759245050807,-500.0,0.00019999,2]
[388576628,1759245050817,-1285.01,0.00019999,2]
[388576629,1759245050826,-501.17,0.00019999,2]
[388576630,1759245050835,-500.0,0.00019999,2]
[388576631,1759245050844,-500.0,0.00019999,2]
[388576632,1759245050854,-500.0,0.00019999,2]
[388576634,1759245050863,-500.0,0.00019999,2]
[388576635,1759245050873,-500.0,0.00019999,2]
[388576637,1759245050883,-500.0,0.00019999,2]
[388576639,1759245050892,-733.74,0.00019999,2]
[388576641,1759245050901,-530.81965797,0.00019999,2]
[388576643,1759245050911,-1788.96,0.00019999,2]
[388576645,1759245050920,-1345.69,0.00019999,2]
[388576647,1759245050930,-1291.55,0.00019999,2]
[388576649,1759245050939,-500.0,0.00019999,2]
[388576651,1759245050948,-500.0,0.00019999,2]
[388576653,1759245050957,-1166.68,0.00019999,2]
[388576655,1759245050966,-775.21,0.00019999,2]
[388576657,1759245050976,-500.0,0.00019999,2]
[388576659,1759245050984,-1602.97,0.00019999,2]
[388576661,1759245050993,-832.21,0.00019999,2]
[388576662,1759245051003,-829.71,0.00019999,2]
[388576664,1759245051013,-805.26,0.00019999,2]
[388576666,1759245051022,-500.0,0.00019999,2]
[388576668,1759245051031,-442.64728077,0.00019999,2]
[388576670,1759245051040,-500.0,0.00019999,2]
[388576672,1759245051050,-500.0,0.00019999,2]
[388576674,1759245051059,-128.82543374,0.0002,2]
[388576676,1759245051068,-500.0,0.0002,2]
[388576678,1759245051077,-834.81,0.0002,2]
[388576680,1759245051086,-2266.48,0.0002,2]
[388576682,1759245051096,-500.0,0.0002,2]
[388576684,1759245051105,-500.0,0.0002,2]
[388576686,1759245051119,-522.16,0.0002,2]
[388576689,1759245051136,-500.0,0.0002,2]
[388576691,1759245051151,-500.0,0.0002,2]
[388576693,1759245051164,-653.75,0.0002,2]
[388576696,1759245051179,-500.0,0.0002,2]
[388576698,1759245051195,-500.0,0.0002,2]
[388576701,1759245051210,-393.10090199,0.0002,2]
[388576703,1759245051224,-500.0,0.0002,2]
[388576706,1759245051240,-422.310737,0.0002,2]
[388576708,1759245051256,-500.0,0.0002,2]
[388576710,1759245051272,-529.15,0.0002,2]
[388576713,1759245051286,-615.54,0.0002,2]
[388576715,1759245051302,-500.0,0.0002,2]
[388576718,1759245051317,-500.0,0.0002,2]
[388576720,1759245051328,-500.0,0.0002,2]
[388576722,1759245051341,-500.0,0.0002,2]
[388576725,1759245051354,-856.35,0.0002,2]
[388576727,1759245051367,-151.0,0.00020261,2]
[388576729,1759245051380,-500.0,0.00020272,2]
[388576732,1759245051396,-500.0,0.00020272,2]
[388576735,1759245051412,-500.0,0.00020272,2]
[388576737,1759245051425,-806.91,0.00020272,2]
[388576739,1759245051436,-2165.41,0.00020272,2]
[388576741,1759245051448,-1302.12,0.00020272,2]
[388576744,1759245051464,-506.04,0.00020272,2]
[388576746,1759245051479,-524.03,0.00020272,2]
[388576748,1759245051490,-512.5,0.00020272,2]
[388576750,1759245051503,-500.0,0.00020272,2]
[388576753,1759245051515,-676.76,0.00020272,2]
[388576755,1759245051528,-500.0,0.00020272,2]
[388576757,1759245051540,-638.75,0.00020272,2]
[388576759,1759245051554,-1451.45,0.00020272,2]
[388576761,1759245051566,-500.0,0.00020272,2]
[388576763,1759245051578,-500.0,0.00020272,2]
[388576765,1759245051591,-500.0,0.00020272,2]
[388576767,1759245051603,-1040.15,0.00020272,2]
[388576769,1759245051615,-500.0,0.00020272,2]
[388576772,1759245051627,-847.46,0.00020272,2]
[388576774,1759245051641,-840.66,0.00020272,2]
[388576776,1759245051652,-1156.03,0.00020272,2]
[388576778,1759245051663,-968.54,0.00020272,2]
[388576780,1759245051675,-1518.72,0.00020272,2]
[388576783,1759245051692,-500.0,0.00020272,2]
[388576785,1759245051704,-1453.1,0.00020272,2]
[388576787,1759245051716,-544.93,0.00020272,2]
[388576789,1759245051728,-518.44,0.00020272,2]
[388576791,1759245051740,-1051.04,0.00020272,2]
[388576793,1759245051752,-500.0,0.00020272,2]
[388576796,1759245051764,-2303.03,0.00020272,2]
[388576798,1759245051777,-500.0,0.00020273,2]
[388576800,1759245051789,-500.0,0.00020273,2]
[388576802,1759245051803,-500.0,0.00020273,2]
[388576804,1759245051817,-500.0,0.00020273,2]
[388576807,1759245051829,-500.0,0.00020273,2]
[388576809,1759245051842,-500.0,0.00020273,2]
[388576811,1759245051854,-500.0,0.00020273,2]
[388576813,1759245051866,-500.0,0.00020273,2]
[388576816,1759245051878,-200.0,0.00020273,2]
[388576818,1759245051891,-500.0,0.00020273,2]
[388576820,1759245051903,-500.0,0.00020273,2]
[388576822,1759245051915,-500.0,0.00020273,2]
[388576825,1759245051928,-296.39882141,0.00020273,2]
[388576827,1759245051941,-500.0,0.00020273,2]
[388576829,1759245051953,-500.0,0.00020273,2]
[388576831,1759245051965,-500.0,0.00020273,2]
[388576833,1759245051977,-500.0,0.00020273,2]
[388576835,1759245051989,-652.36,0.00020273,2]
[388576838,1759245052003,-731.2,0.00020273,2]
[388576840,1759245052016,-740.62,0.00020273,2]
[388576842,1759245052029,-500.0,0.00020273,2]
[388576844,1759245052041,-500.0,0.00020273,2]
[388576847,1759245052055,-500.0,0.00020273,2]
[388576849,1759245052066,-500.0,0.00020273,2]
[388576851,1759245052079,-529.34714664,0.00020273,2]
[388576853,1759245052091,-834.81,0.00020273,2]
[388576856,1759245052103,-500.0,0.00020273,2]
[388576858,1759245052115,-2266.48,0.00020273,2]
[388576860,1759245052127,-500.0,0.00020273,2]
[388576862,1759245052141,-500.0,0.00020273,2]
[388576865,1759245052153,-500.0,0.00020273,2]
[388576867,1759245052164,-412.6596154,0.00020273,2]
[388576869,1759245052176,-533.03,0.00020273,2]
[388576871,1759245052188,-500.0,0.00020273,2]
[388576873,1759245052202,-500.0,0.00020273,2]
[388576875,1759245052214,-500.0,0.00020273,2]
[388576878,1759245052226,-522.16,0.00020273,2]
[388576880,1759245052238,-500.0,0.00020273,2]
[388576882,1759245052250,-1168.74,0.00020273,2]
[388576896,1759245052380,-500.0,0.00020273,2]
[388576899,1759245052404,-653.75,0.00020273,2]
[388576901,1759245052417,-500.0,0.00020273,2]
[388576903,1759245052427,-500.0,0.00020273,2]
[388576905,1759245052436,-500.0,0.00020273,2]
[388576907,1759245052445,-500.0,0.00020273,2]
[388576909,1759245052455,-500.0,0.00020273,2]
[388576911,1759245052464,-500.0,0.00020273,2]
[388576913,1759245052474,-970.84,0.00020273,2]
[388576915,1759245052483,-1580.86,0.00020273,2]
[388576917,1759245052492,-500.0,0.00020273,2]
[388576918,1759245052500,-500.0,0.00020273,2]
[388576920,1759245052510,-500.0,0.00020273,2]
[388576921,1759245052519,-1807.02,0.00020273,2]
[388576922,1759245052528,-654.09,0.00020273,2]
[388576923,1759245052538,-500.0,0.00020273,2]
[388576924,1759245052549,-2511.69,0.00020273,2]
[388576925,1759245052558,-500.0,0.00020273,2]
[388576926,1759245052567,-500.0,0.00020273,2]
[388576927,1759245052576,-500.0,0.00020273,2]
[388576928,1759245052586,-567.53,0.00020273,2]
[388576929,1759245052594,-1342.87,0.00020273,2]
[388576930,1759245052604,-2022.65,0.00020273,2]
[388576932,1759245052613,-1527.54,0.00020273,2]
[388576934,1759245052623,-500.0,0.00020273,2]
[388576936,1759245052632,-462.74249468,0.00020273,2]
[388576938,1759245052641,-500.0,0.00020273,2]
[388576940,1759245052650,-529.15,0.00020273,2]
[388576941,1759245052659,-500.0,0.00020273,2]
[388576943,1759245052669,-500.0,0.00020273,2]
[388576945,1759245052680,-615.54,0.00020273,2]
[388576947,1759245052693,-2819.35,0.00020273,2]
[388576948,1759245052703,-500.0,0.00020273,2]
[388576949,1759245052712,-500.0,0.00020273,2]
[388576950,1759245052723,-500.0,0.00020273,2]
[388576952,1759245052733,-500.0,0.00020273,2]
[388576954,1759245052743,-824.81,0.00020273,2]
[388576955,1759245052752,-500.0,0.00020273,2]
[388576956,1759245052762,-500.0,0.00020273,2]
[388576957,1759245052772,-500.0,0.00020273,2]
[388576958,1759245052781,-500.0,0.00020273,2]
[388576959,1759245052791,-747.27,0.00020273,2]
[388576960,1759245052802,-500.0,0.00020273,2]
[388576961,1759245052811,-754.71,0.00020273,2]
[388576962,1759245052820,-500.0,0.00020273,2]
[388576963,1759245052831,-670.53,0.00020273,2]
[388576964,1759245052840,-1983.65,0.00020273,2]
[388576965,1759245052849,-803.43,0.00020273,2]
[388576966,1759245052859,-500.0,0.00020273,2]
[388576967,1759245052868,-688.46,0.00020273,2]
[388576968,1759245052877,-538.24,0.00020273,2]
[388576969,1759245052887,-679.98,0.00020273,2]
[388576970,1759245052896,-500.0,0.00020273,2]
[388576971,1759245052906,-196.67372124,0.00020273,2]
[388576972,1759245052916,-589.27,0.00020273,2]
[388576973,1759245052925,-500.0,0.00020273,2]
[388576974,1759245052935,-500.0,0.00020273,2]
[388576975,1759245052944,-535.7,0.00020273,2]
[388576976,1759245052954,-1820.42,0.00020273,2]
[388576977,1759245052963,-2007.42,0.00020273,2]
[388576978,1759245052974,-793.47,0.00020273,2]
[388576979,1759245052983,-2768.25,0.00020273,2]
[388576980,1759245052993,-1506.48,0.00020273,2]
[388576981,1759245053003,-500.0,0.00020273,2]
[388576982,1759245053013,-1157.75,0.00020273,2]
[388576983,1759245053023,-629.43,0.00020273,2]
[388576984,1759245053033,-500.0,0.00020273,2]
[388576985,1759245053042,-1285.01,0.00020273,2]
[388576986,1759245053054,-501.17,0.00020273,2]
[388576987,1759245053064,-500.0,0.00020273,2]
[388576988,1759245053074,-500.0,0.00020273,2]
[388576989,1759245053084,-500.0,0.00020273,2]
[388576990,1759245053094,-500.0,0.00020273,2]
[388576991,1759245053103,-500.0,0.00020273,2]
[388576992,1759245053113,-500.0,0.00020273,2]
[388576993,1759245053123,-733.74,0.00020273,2]
[388576994,1759245053133,-1788.96,0.00020273,2]
[388576995,1759245053142,-1345.69,0.00020273,2]
[388576996,1759245053151,-1291.55,0.00020273,2]
[388576997,1759245053161,-500.0,0.00020273,2]
[388576998,1759245053171,-500.0,0.00020273,2]
[388576999,1759245053180,-500.0,0.00020273,2]
[388577000,1759245053189,-1166.68,0.00020273,2]
[388577001,1759245053199,-500.0,0.00020273,2]
[388577002,1759245053208,-775.21,0.00020273,2]
[388577003,1759245053218,-1602.97,0.00020273,2]
[388577004,1759245053227,-832.21,0.00020273,2]
[388577005,1759245053236,-500.0,0.00020273,2]
[388577006,1759245053246,-829.71,0.00020273,2]
[388577007,1759245053255,-805.26,0.00020273,2]
[388577008,1759245053264,-856.35,0.00020273,2]
[388577009,1759245053274,-500.0,0.00020273,2]
[388577010,1759245053283,-500.0,0.00020273,2]
[388577011,1759245053293,-500.0,0.00020273,2]
[388577012,1759245053305,-500.0,0.0002052,2]
[388577013,1759245053315,-594.91083825,0.00020521,2]
[388577014,1759245053324,-1032.04413986,0.00020521,2]
[388577015,1759245053334,-176.23590451,0.00020521,2]
[388577016,1759245053345,-1000.0,0.00020521,2]
[388577017,1759245053354,-1000.0,0.00020521,2]
[388577018,1759245053364,-997.4327955,0.00020521,2]
[388577019,1759245053375,-334.24756958,0.00020521,2]
[388577020,1759245053385,-500.0,0.00020546,2]
[388577021,1759245053395,-500.0,0.00020546,2]
[388577022,1759245053404,-806.91,0.00020546,2]
[388577023,1759245053414,-2165.41,0.00020546,2]
[388577024,1759245053424,-1302.12,0.00020546,2]
[388577025,1759245053434,-506.04,0.00020546,2]
[388577026,1759245053444,-524.03,0.00020546,2]
[388577027,1759245053454,-512.5,0.00020546,2]
[388577028,1759245053463,-500.0,0.00020546,2]
[388577029,1759245053473,-676.76,0.00020546,2]
[388577030,1759245053483,-500.0,0.00020546,2]
[388577031,1759245053493,-638.75,0.00020546,2]
[388577032,1759245053504,-1451.45,0.00020546,2]
[388577033,1759245053513,-500.0,0.00020546,2]
[388577034,1759245053523,-500.0,0.00020546,2]
[388577035,1759245053532,-500.0,0.00020546,2]
[388577036,1759245053542,-1040.15,0.00020546,2]
[388577037,1759245053553,-500.0,0.00020546,2]
[388577038,1759245053563,-847.46,0.00020546,2]
[388577039,1759245053572,-840.66,0.00020546,2]
[388577040,1759245053581,-1156.03,0.00020546,2]
[388577041,1759245053591,-968.54,0.00020546,2]
[388577042,1759245053601,-1518.72,0.00020546,2]
[388577043,1759245053610,-500.0,0.00020546,2]
[388577044,1759245053620,-1453.1,0.00020546,2]
[388577045,1759245053629,-544.93,0.00020546,2]
[388577046,1759245053639,-518.44,0.00020546,2]
[388577047,1759245053648,-1051.04,0.00020546,2]
[388577048,1759245053658,-500.0,0.00020546,2]
[388577049,1759245053667,-2303.03,0.00020546,2]
[388577050,1759245053676,-500.0,0.00020547,2]
[388577051,1759245053686,-500.0,0.00020547,2]
[388577052,1759245053695,-616.16257794,0.00020547,2]
[388577053,1759245053705,-500.0,0.00020547,2]
[388577054,1759245053715,-500.0,0.00020547,2]
[388577055,1759245053725,-500.0,0.00020547,2]
[388577056,1759245053735,-652.36,0.00020547,2]
[388577057,1759245053744,-731.2,0.00020547,2]
[388577058,1759245053754,-740.62,0.00020547,2]
[388577059,1759245053763,-500.0,0.00020547,2]
[388577060,1759245053773,-500.0,0.00020547,2]
[388577061,1759245053783,-500.0,0.00020547,2]
[388577062,1759245053792,-834.81,0.00020547,2]
[388577063,1759245053805,-500.0,0.00020547,2]
[388577064,1759245053815,-2266.48,0.00020547,2]
[388577065,1759245053824,-500.0,0.00020547,2]
[388577066,1759245053834,-500.0,0.00020547,2]
[388577067,1759245053844,-500.0,0.00020547,2]
[388577068,1759245053854,-533.03,0.00020547,2]
[388577069,1759245053863,-500.0,0.00020547,2]
[388577070,1759245053873,-582.66134599,0.00020547,2]
[388577071,1759245053882,-500.0,0.00020547,2]
[388577072,1759245053892,-522.16,0.00020547,2]
[388577073,1759245053901,-500.0,0.00020547,2]
[388577074,1759245053911,-1168.74,0.00020547,2]
[388577075,1759245053920,-633.94675942,0.00020547,2]
[388577076,1759245053931,-653.75,0.00020547,2]
[388577077,1759245053940,-500.0,0.00020547,2]
[388577078,1759245053949,-500.0,0.00020547,2]
[388577079,1759245053959,-500.0,0.00020547,2]
[388577080,1759245053968,-500.0,0.00020547,2]
[388577081,1759245053978,-500.0,0.00020547,2]
[388577082,1759245053988,-625.02896989,0.00020547,2]
[388577083,1759245053997,-970.84,0.00020547,2]
[388577084,1759245054006,-1580.86,0.00020547,2]
[388577085,1759245054016,-500.0,0.00020547,2]
[388577086,1759245054026,-500.0,0.00020547,2]
[388577087,1759245054036,-500.0,0.00020547,2]
[388577088,1759245054046,-1807.02,0.00020547,2]
[388577089,1759245054057,-654.09,0.00020547,2]
[388577090,1759245054067,-500.0,0.00020547,2]
[388577091,1759245054077,-2511.69,0.00020547,2]
[388577092,1759245054087,-500.0,0.00020547,2]
[388577093,1759245054097,-500.0,0.00020547,2]
[388577094,1759245054107,-500.0,0.00020547,2]
[388577095,1759245054117,-567.53,0.00020547,2]
[388577096,1759245054126,-1342.87,0.00020547,2]
[388577097,1759245054136,-2022.65,0.00020547,2]
[388577098,1759245054146,-1527.54,0.00020547,2]
[388577099,1759245054156,-500.0,0.00020547,2]
[388577100,1759245054166,-500.0,0.00020547,2]
[388577101,1759245054176,-529.15,0.00020547,2]
[388577102,1759245054186,-500.0,0.00020547,2]
[388577103,1759245054195,-500.0,0.00020547,2]
[388577104,1759245054205,-615.54,0.00020547,2]
[388577105,1759245054215,-2819.35,0.00020547,2]
[388577106,1759245054224,-500.0,0.00020547,2]
[388577107,1759245054234,-500.0,0.00020547,2]
[388577108,1759245054243,-500.0,0.00020547,2]
[388577109,1759245054252,-500.0,0.00020547,2]
[388577110,1759245054262,-824.81,0.00020547,2]
[388577111,1759245054271,-500.0,0.00020547,2]
[388577112,1759245054280,-400.0,0.00020547,2]
[388577113,1759245054291,-500.0,0.00020547,2]
[388577114,1759245054301,-500.0,0.00020547,2]
[388577115,1759245054310,-747.27,0.00020547,2]
[388577116,1759245054319,-500.0,0.00020547,2]
[388577117,1759245054328,-754.71,0.00020547,2]
[388577118,1759245054338,-500.0,0.00020547,2]
[388577119,1759245054348,-670.53,0.00020547,2]
[388577120,1759245054356,-1983.65,0.00020547,2]
[388577121,1759245054366,-803.43,0.00020547,2]
[388577122,1759245054375,-500.0,0.00020547,2]
[388577123,1759245054385,-688.46,0.00020547,2]
[388577124,1759245054394,-538.24,0.00020547,2]
[388577125,1759245054404,-679.98,0.00020547,2]
[388577126,1759245054414,-500.0,0.00020547,2]
[388577127,1759245054424,-589.27,0.00020547,2]
[388577128,1759245054434,-500.0,0.00020547,2]
[388577129,1759245054443,-500.0,0.00020547,2]
[388577130,1759245054453,-535.7,0.00020547,2]
[388577131,1759245054463,-1820.42,0.00020547,2]
[388577132,1759245054472,-2007.42,0.00020547,2]
[388577133,1759245054481,-793.47,0.00020547,2]
[388577134,1759245054491,-2768.25,0.00020547,2]
[388577135,1759245054500,-1506.48,0.00020547,2]
[388577136,1759245054510,-500.0,0.00020547,2]
[388577137,1759245054519,-1157.75,0.00020547,2]
[388577138,1759245054529,-629.43,0.00020547,2]
[388577139,1759245054540,-500.0,0.00020547,2]
[388577140,1759245054549,-1285.01,0.00020547,2]
[388577141,1759245054558,-501.17,0.00020547,2]
[388577142,1759245054568,-500.0,0.00020547,2]
[388577143,1759245054578,-500.0,0.00020547,2]
[388577144,1759245054587,-500.0,0.00020547,2]